Cogmind - Beta 13 @@@ ROGUE MODE // 2024.04.05 @ 00:53:49 Player: Arianne Result: Destroyed by 84-IK3(R) with Subdweller Machine Gun Performance ------------- Evolutions (0) 0 Regions Visited (3) 600 Robots Destroyed (2) 10 Value Destroyed (26) 26 Prototype IDs (0) 0 Alien Tech Used (0) 0 Bonus (35) 35 TOTAL SCORE: 671 Bonus ------- Follower Combat Kills 35 Cogmind --------- Core Integrity 0/250 Matter 296/300 Energy 100/100 System Corruption 0% Temperature Cool (0) Movement Core (50) Location -10/Subcaves Parts ------- > --- POWER (1) -------- (None) > --- PROPULSION (2) --- (None) > --- UTILITY (2) ------ Visual Processing Unit > --- WEAPON (2) ------- (None) > --- INVENTORY (5) ---- Light Ion Engine Scrap Shield Assault Rifle Assault Rifle Peak State ------------ > --- POWER ------------ Light Nuclear Core > --- PROPULSION ------- Aluminum Leg Aluminum Leg > --- UTILITY ---------- Small Storage Unit Propulsion Shielding > --- WEAPON ----------- Assault Rifle Assault Rifle > --- INVENTORY -------- Ion Engine Light Ion Engine Visual Processing Unit Scrap Shield Assault Rifle Assault Rifle [Rating: 10] Favorites ----------- Power Light Ion Engine Engine Light Ion Engine Power Core Light Nuclear Core Propulsion Aluminum Leg Leg Aluminum Leg Utility Small Storage Unit Device Structural Scanner Storage Small Storage Unit Processor Visual Processing Unit Protection Propulsion Shielding Weapon Assault Rifle Energy Gun Medium Laser Ballistic Gun Assault Rifle Build | -11 -10 -10 -10 ------- Run | Yrd Mat Min Sub Slots Evolved . | . . . . Power . | . . . . Propulsion . | . . . . Utility . | . . . . Weapon . | . . . . Parts Attached 14 | 6 3 3 2 Power 4 | 1 . 2 1 Engine 3 | 1 . 1 1 Core 1 | . . 1 . Reactor . | . . . . Propulsion 2 | 2 . . . Treads . | . . . . Leg 2 | 2 . . . Wheel . | . . . . Hover . | . . . . Flight . | . . . . Utility 4 | 1 1 1 1 Device 1 | . 1 . . Storage 1 | 1 . . . Processor 1 | . . . 1 Hackware . | . . . . Protection 1 | . . 1 . Artifact . | . . . . Weapon 4 | 2 2 . . Energy Gun 1 | 1 . . . Energy Cannon . | . . . . Ballistic Gun 3 | 1 2 . . Ballistic Cannon . | . . . . Launcher . | . . . . Special Weapon . | . . . . Impact Weapon . | . . . . Slashing Weapon . | . . . . Piercing Weapon . | . . . . Special Melee Weapon . | . . . . Unidentified Prototypes . | . . . . Parts Lost 8 | . . . 8 Power 2 | . . . 2 Propulsion 2 | . . . 2 Utility 2 | . . . 2 Weapon 2 | . . . 2 Highest Loss Streak 7 | . . . 7 To Critical Strikes . | . . . . Average Slot Usage (%) 96 | . 92 100 89 Engine 10 | . 14 12 . Core 3 | . . 1 12 Leg 27 | . 28 28 27 Device 1 | . 7 . . Storage 14 | . 14 14 14 Processor 1 | . . . 5 Protection 9 | . . 13 1 Ballistic Gun 27 | . 22 28 26 Naked Turns . | . . . . Heaviest Build 15 | 11 13 15 15 Greatest Support 20 | 20 3 3 3 Greatest Overweight (x) 4 | 3 4 4 4 Average Overweight (x) 3 | . 3 4 3 Largest Inventory Capacity 8 | 8 8 8 8 Average Capacity 7 | 5 8 8 7 Most Carried 8 | 3 7 8 7 Average Carried 4 | . 5 4 6 Final Capacity 8 | 8 8 8 5 Final Carried 7 | 2 7 5 5 Class Distribution -------------------- 100% | Mutant Dominant Class ---------------- Mutant | -10/Materials Mutant | -10/Mines Mutant | -10/Subcaves Resources | -11 -10 -10 -10 ----------- Run | Yrd Mat Min Sub Matter Collected 358 | 234 55 53 16 Remotely . | . . . . Salvage Created 38 | . 29 9 . Parts 5 | . 4 1 . Haulers Intercepted . | . . . . Recyclers Shooed . | . . . . Parts Field Recycled . | . . . . Retrieved Matter . | . . . . Parts Self-Destructed 15 | . . . 15 Prevented . | . . . . Kills | -11 -10 -10 -10 ------- Run | Yrd Mat Min Sub Combat Hostiles Destroyed 1 | . . 1 . Guns 1 | . . 1 . Classes Destroyed 2 | . 1 1 . Watcher 1 | . 1 . . Swarmer 1 | . . 1 . Best Kill Streak 1 | . 1 1 . Combat Bots Only 1 | . . 1 . Max Kills in Single Turn 1 | . 1 1 . Gunslinging . | . . . . Exploded . | . . . . Melee . | . . . . Uniques/NPCs Destroyed . | . . . . Combat | -11 -10 -10 -10 -------- Run | Yrd Mat Min Sub Hostile Shots Fired 61 | . . 5 56 Missed 17 | . . 1 16 Damage Taken 969 | . 1 166 802 Core 263 | . . . 263 Absorbed by Shields . | . . . . Redirected to Shielding 31 | . . 27 4 Core Remaining (%) 100 | 100 . . . Volleys Fired 9 | . 3 1 5 Largest 2 | . 2 2 2 Hottest 40 | . 40 40 40 Shots Fired 18 | . 6 2 10 Gun 18 | . 6 2 10 Cannon . | . . . . Launcher . | . . . . Special . | . . . . Kinetic 18 | . 6 2 10 Thermal . | . . . . Explosive . | . . . . Electromagnetic . | . . . . Robot Hit Streak 9 | . 4 2 9 Robot Miss Streak 2 | . 2 . 1 Penetration Max . | . . . . Secondary Targets . | . . . . Shots Hit Robots 15 | . 4 2 9 Core Hits 4 | . 2 1 1 Critical Kills . | . . . . Critical Parts Destroyed . | . . . . Critical Strikes . | . . . . Melee Attacks . | . . . . Impact . | . . . . Slashing . | . . . . Piercing . | . . . . Sneak Attacks . | . . . . Combat Hostiles . | . . . . Follow-up Attacks . | . . . . Damage Inflicted 195 | . 55 24 116 Guns 193 | . 53 24 116 Cannons . | . . . . Explosions . | . . . . Melee . | . . . . Ramming 2 | . 2 . . Kinetic 193 | . 53 24 116 Thermal . | . . . . Explosive . | . . . . Electromagnetic . | . . . . Impact . | . . . . Slashing . | . . . . Piercing . | . . . . Highest Corruption . | . . . . Average Corruption . | . . . . Corruption Purged . | . . . . Corruption Blocked . | . . . . Overload Shots . | . . . . Overflow Damage . | . . . . Projectiles . | . . . . Explosions . | . . . . Melee . | . . . . Knockbacks . | . . . . Impact . | . . . . Kinetic . | . . . . Secondary . | . . . . Self-Inflicted Damage 1 | . 1 . . Shots . | . . . . Rammed 2 | . 1 1 . Targets Rammed 2 | . 1 1 . Kicked . | . . . . Crushed . | . . . . Highest Temperature . | . . . . Average Temperature . | . . . . Received Heat Transfer 147 | . . . 147 Siege Activations . | . . . . Robots Corrupted . | . . . . Combat Hostiles . | . . . . Parts Fried . | . . . . Impact Corruptions . | . . . . Robots Melted . | . . . . Combat Hostiles . | . . . . Parts Melted . | . . . . Heat Transferred . | . . . . Parts Sabotaged . | . . . . Parts Stolen . | . . . . Parts Stripped . | . . . . Power Chain Reactions . | . . . . Alert | -11 -10 -10 -10 ------- Run | Yrd Mat Min Sub Peak Influence 88 | . 22 88 . Initial 8 | . . 8 . Average 8 | . 4 9 . Maximum Alert Level . | . . . . Low Security (%) 100 | 100 100 100 . Level 1 . | . . . . Level 2 . | . . . . Level 3 . | . . . . Level 4 . | . . . . Level 5 . | . . . . High Security . | . . . . Max Security . | . . . . Squads Dispatched . | . . . . Investigation . | . . . . Extermination . | . . . . Reinforcement . | . . . . Assault . | . . . . Garrison . | . . . . Intercept . | . . . . Searches Triggered . | . . . . Construction Impeded . | . . . . Haulers Reinforced . | . . . . Active Scanning Responses . | . . . . Cargo Convoy Interrupts . | . . . . Stealth | -11 -10 -10 -10 --------- Run | Yrd Mat Min Sub Distress Signals . | . . . . Communications Jammed . | . . . . Distress Signals . | . . . . Times Spotted 18 | . 3 6 9 Peak Tracking Total 5 | . 2 3 5 Tactical Retreats . | . . . . Traps | -11 -10 -10 -10 ------- Run | Yrd Mat Min Sub Traps Triggered . | . . . . Indirectly . | . . . . Trap Hack Attempts . | . . . . Triggered . | . . . . Disarmed . | . . . . Reprogrammed . | . . . . Reused . | . . . . Traps Extracted . | . . . . Installed . | . . . . Triggered . | . . . . Machines | -11 -10 -10 -10 ---------- Run | Yrd Mat Min Sub Machines Disabled . | . . . . Max in Single Turn . | . . . . Machines Repaired . | . . . . Machines Dismantled . | . . . . Machines Sabotaged . | . . . . Overloaded Fab Kills . | . . . . Hacking | -11 -10 -10 -10 --------- Run | Yrd Mat Min Sub Machines Accessed . | . . . . Terminals . | . . . . Fabricators . | . . . . Repair Stations . | . . . . Recycling Units . | . . . . Scanalyzers . | . . . . Garrison Access . | . . . . Total Hacks . | . . . . Successful . | . . . . Failed . | . . . . Catastrophic . | . . . . Database Lockouts . | . . . . Manual . | . . . . Terminals . | . . . . Fabricators . | . . . . Repair Stations . | . . . . Recycling Units . | . . . . Scanalyzers . | . . . . Garrison Access . | . . . . Terminal Hacks . | . . . . Fabricator Hacks . | . . . . Repair Station Hacks . | . . . . Recycling Unit Hacks . | . . . . Scanalyzer . | . . . . Garrison Access Hacks . | . . . . Unauthorized Hacks . | . . . . Terminals . | . . . . Fabricators . | . . . . Repair Stations . | . . . . Recycling Units . | . . . . Scanalyzers . | . . . . Garrison Access . | . . . . Data Cores Recovered . | . . . . Used . | . . . . Hacking Detections . | . . . . Full Trace Events . | . . . . Feedback Events . | . . . . Feedback Blocked . | . . . . Robot Schematics Acquired . | . . . . Robots Built . | . . . . Authchips . | . . . . Time . | . . . . Total Robot Build Rating . | . . . . Part Schematics Acquired . | . . . . Parts Built . | . . . . Authchips . | . . . . Time . | . . . . Total Part Build Rating . | . . . . Parts Repaired . | . . . . Time . | . . . . Parts Recycled . | . . . . Recycled Matter . | . . . . Retrieved Matter . | . . . . Retrieved Components . | . . . . Parts Scanalyzed . | . . . . Part Schematics Acquired . | . . . . Parts Damaged . | . . . . Bothacking | -11 -10 -10 -10 ------------ Run | Yrd Mat Min Sub Used RIF Installer . | . . . . Robots Hacked . | . . . . Non-combat . | . . . . Combat . | . . . . Robot Hacks Applied . | . . . . Relay Couplers Released . | . . . . Fabnet Peak Effective % . | . . . . Robots Rewired . | . . . . Allies Hacked . | . . . . Hacks Repelled . | . . . . Allies | -11 -10 -10 -10 -------- Run | Yrd Mat Min Sub Total Allies 3 | . . 3 . Largest Group 3 | . . 3 . Highest-Rated Group 40 | . . 40 . Highest-Rated Ally 16 | . . 16 . Total Orders . | . . . . Ally Attacks 21 | . . 21 . Total Damage 152 | . . 152 . Kills 6 | . . 6 . Allies Corrupted . | . . . . Allies Melted . | . . . . Intel | -11 -10 -10 -10 ------- Run | Yrd Mat Min Sub Robot Analysis Total . | . . . . Derelict Logs Recovered 1 | . . 1 . Drone Launches . | . . . . Drone Recoveries . | . . . . Exploration | -11 -10 -10 -10 ------------- Run | Yrd Mat Min Sub Turns Passed 1787 | 173 144 1101 369 Spaces Moved 777 | 152 52 425 148 Core 708 | 83 52 425 148 Treads . | . . . . Legs 69 | 69 . . . Wheels . | . . . . Hover . | . . . . Flight . | . . . . Fastest Speed 50 | 50 200 250 50 Average Speed 217 | 107 222 250 234 Slowest Speed 250 | 200 250 250 250 Overloaded Moves . | . . . . Propulsion Burnouts . | . . . . Robots Hopped . | . . . . Cave-ins Triggered . | . . . . Exploration Rate (%) 20 | 6 13 52 11 Regions Visited 3 Branch Regions 2 Pre-discovered Areas . | . . . . Known Exits Taken . | . . . . Unknown Exits Taken 3 | 1 1 1 . Scrap Searched 1 | . . 1 . Spaces Dug . | . . . . Terrain Destroyed . | . . . . Melee . | . . . . Projectile . | . . . . AOE . | . . . . Terrain Rammed . | . . . . Walls Destroyed . | . . . . Machines Disabled . | . . . . Actions | -11 -10 -10 -10 --------- Run | Yrd Mat Min Sub Total 857 | 160 73 464 160 Wait 38 | . 9 25 4 Move 774 | 151 51 424 148 Hop . | . . . . Pick Up 13 | 3 6 3 1 Fast Attach 6 | 5 . 1 . Attach 5 | 1 1 1 2 Detach 1 | . . 1 . Swap 3 | . 2 1 . Drop 6 | . . 6 . Fire 9 | . 3 1 5 Melee . | . . . . Ram 2 | . 1 1 . Kick . | . . . . Crush . | . . . . Escape Stasis . | . . . . Rewire . | . . . . Trap . | . . . . Miscellaneous . | . . . . Route ------- -11/Scrapyard -10/Materials -10/Mines (discovered 4 exits: [*Mat x2] / [*Exi] / [*Sub]) -10/Subcaves History --------- Turn | Location | Event 2 | -11/Scrapyard | Met Revision 17 5 | -11/Scrapyard | Discovered new exit (range 16) 174 | -11/Scrapyard | Entered Materials 204 | -10/Materials | Discovered new exit (range 16) 318 | -10/Materials | Build established: Mutant 318 | -10/Materials | Entered Mines 346 | -10/Mines | Assisted by bots powering up and referring to "LRC-V3" 433 | -10/Mines | Deemed a non-threat by the Exiles lab entrance 436 | -10/Mines | Discovered new exit (range 5) 929 | -10/Mines | Discovered new exit (range 9) 1107 | -10/Mines | Learned 8 Materials zone layouts 1351 | -10/Mines | Discovered new exit (range 12) 1394 | -10/Mines | Discovered new exit (range 10) 1395 | -10/Mines | Assembled infested the area 1419 | -10/Mines | Entered Subcaves 1719 | -10/Subcaves | Ambushed by swarm of Subdwellers 1767 | -10/Subcaves | Lost 4 allies 1775 | -10/Subcaves | Core integrity fell below 50% 1785 | -10/Subcaves | Core integrity fell below 20% 1788 | -10/Subcaves | Destroyed by 84-IK3(R) with Subdweller Machine Gun Last Messages --------------- DV-MSP(g): "Sorry we're late! Had another grouchy Sub to deal with. Who's the new fellow?" WW-EWD(R) suffers critical hit (Burn). DV-MSP(g) knocked back. FF-5YO(g) destroyed. WW-EWD(R) affixes Scrap Shield Fragment to Scrap Shield. 9D-K34(h) suffers critical hit (Destroy). 9D-K34(h) destroyed. DV-MSP(g) destroyed. Lgt. Nuclear Core destroyed. FR-LI1(R) affixes Scrap Shield Fragment to Scrap Shield. Aluminum Leg destroyed. Assault Rifle destroyed. Ion Engine destroyed. Subatomizers dissect the Beamcaster. Sml. Storage Unit destroyed. Aluminum Leg destroyed. Map ----- +----------------------------------------------------+ | ???#### ###???????????????????????????????? | | ???# #???????????????????????????????? | | ???## #???????????????????????????????? | | ???## # # # #???????????????????????????????? | | ???# ## ####???????????????????????????????? | | ???# # #####??????????????????????????????????? | | ???## #######????????????????????????????????? | | ???# # #????????????????????????????????? | | ???##% # #????????????????????????????????? | | ???# ##?????#?????????????????????????? | | ### #### ##??? ??????????????????????????? | | % ""##### #?? ##?????????????????????????? | | %% ###?# ### #?????????????????????????? | | # ## % ### # ##?????????????????????????? | | ##?## #?????????????????????????? | | ##??## ##?????????????????????????? | | ### ## # ##??????????????????????????? | | %% ## ##### ##????????????????????????? | | # #?# ###?????###??????????????? | | # ## ##?# ##???## ##?????????????? | | ?## ##??# ##?## ##????????????? | | ?## ##???## ### ####?????????? | | ?## ####?###### R #?????????? | | ??# # ### # ## R #??????????? | | ??## == ### R ## ##??????????? | | ??#" !%= % # ##@ ### #???????????? | | ###### ##### R##?## #???????????? | | ?????# ##???### ##??# #???????????? | | #?????# #??????# ##?# ##??????????? | | ??????####??????# ### #??????????? | | ????????????????# ## ### #??????????? | | #?????????????????###### ## ##??????????? | | ???????????????????????# *= #???????????? | | ????????????????????????# *[ !%! #???????????? | | ???????????????????????# %%= =## ##??????????? | | ????????????????????????# =!= % ## #??????????? | | ???????????????????????# =%[ #??????????? | | ??????????????????????# !*]%[ ## #??????????? | | ??????????????????????# !% ##### #??????????? | | ???????????????????? % * "???## ??????????? | | ??????????????????? "????#####?????????? | | ??????????????????######## ??????????????????? | | ?????????????????????????#### #?????????????????? | | ????????????????????????????# ?????????????????? | | ????????????????????????????# ?????????????????? | | ????????????????????????????## ?????????????????? | | ??????????????????????????????#??????????????????? | | ?????????????????????????????????????????????????? | | ?????????????????????????????????????????????????? | | ?????????????????????????????????????????????????? | +----------------------------------------------------+ Best States ------------- Heat Dissipation 25 Energy Generation 14 Energy Capacity 250 Matter Stores 300 Matter Capacity 300 Sight Range 18 Terrain Scan Density 10 Propulsion Shielding 33 Evasion (%) 50 Item Schematics ----------------- None Robot Schematics ------------------ None Fabricated ------------ Nothing Alien Tech Used ----------------- None Achievements -------------- None Challenges ------------ None Game ------ Seed PropulsionZhirovDetector Manual? 0 Play Time 00:16:52 Cumulative 2.8 hours Start 2024.04.05 @ 00:37:53 End 2024.04.05 @ 00:53:49 Sessions 1 Manual Loads 0 Difficulty Rogue Special Mode None Game No. 9 Rogue 9 Adventurer 0 Explorer 0 Win Type - Total 0 Types 0/0/0/0/0/0/0/0/0 Lore% 2 Gallery% 7 Achievement% 7 Wizard Run 0 Options --------- Layout 1 ASCII 0 Keyboard 0 Movement Arrows Keybinds 0 Fullscreen 1 Font 32/SmallcapsGlow Map View 50x35 Zoom Use 0% Tactical HUD 0 Map Filters NONE Filters NONE Steam 1 RUN: dadf35d1-981b-417e-8e2b-f76f0ee789bb